Workbook

Sheet CardSkillConfig
A1: ID[csknu] | B1: name[ct] | C1: quality[csn] | D1: qualityType[cn] | E1: type[csn] | F1: attr[csn] | G1: HP[csn] | H1: attack[csn] | I1: spellAttack[csn] | J1: realAttack[csn] | K1: attackRange[cn] | L1: bullet[cn] | M1: attackSpeed[csn] | N1: attackCrit[csn] | O1: critNum[csn] | P1: defense[csn] | Q1: spellDefense[csn] | R1: hurtFrame[cn] | S1: hit[csn] | T1: dodge[csn] | U1: moveSpeed[cn] | V1: skills[cna] | W1: skillCDs[cna] | X1: posType[cna] | Y1: moreSkill[cna] | Z1: castType[cn] | AA1: startCD[cn] | AB1: cost[cn] | AC1: width[cn] | AD1: height[cn] | AE1: url[ct] | AF1: debris[csn] | AG1: consume[csn] | AH1: tips[ct] | AI1: tip[ct] | AJ1: attrNum[cna]
A2: ID区间(2w-3w) | B2: 名称 | C2: 品阶 | D2: 品质 | E2: 类型 | F2: 伤害类型 | G2: 血量 | H2: 攻击力 | I2: 法术攻击力 | J2: 真实攻击力 | K2: 攻击范围 | L2: 子弹id | M2: 攻击速度 | N2: 攻击暴击率‱ | O2: 暴击倍数‱ | P2: 防御力 | Q2: 法术防御力 | R2: 伤害帧 | S2: 命中‱ | T2: 攻击闪避‱ | U2: 移动速度 | V2: 技能数组 | W2: 技能cd数组 | X2: 位置类型 | Y2: 多段技能 | Z2: 技能警示类型 | AA2: 入场cd | AB2: 召唤费用 | AC2: 警示范围宽度 | AD2: 警示范围高度 | AE2: 角色资源路径 | AF2: 卡牌碎片ID | AG2: 突破消耗碎片数量 | AH2: 特性描述 | AI2: 技能描述 | AJ2: 描述数值参数
A3: 20101 | B3: t5200 | C3: 1 | D3: 1 | E3: 1 | F3: 1 | G3: 0 | H3: 0 | I3: 235 | J3: 0 | K3: 0 | L3: 50101 | M3: 0 | N3: 0 | O3: 15000 | P3: 0 | Q3: 0 | R3: 0 | S3: 0 | T3: 0 | U3: 0 | V3: 50101 | W3: 35 | X3: 1^3 | Y3: 1^1 | Z3: 0 | AA3: 6 | AB3: 0 | AC3: 0 | AD3: 0 | AE3: kp1000 | AF3: 150000 | AG3: 60 | AH3: 0 | AI3: t6500 | AJ3: 100 | AK3: 连锁闪电
A4: 20102 | B4: t5200 | C4: 2 | D4: 2 | E4: 1 | F4: 1 | G4: 0 | H4: 0 | I4: =_xlfn.FLOOR.MATH(I3*1.4) -> 329 | J4: 0 | K4: 0 | L4: 50101 | M4: 0 | N4: 0 | O4: 15000 | P4: 0 | Q4: 0 | R4: 0 | S4: 0 | T4: 0 | U4: 0 | V4: 50101 | W4: 35 | X4: 1^3 | Y4: 1^1 | Z4: 0 | AA4: 6 | AB4: 0 | AC4: 0 | AD4: 0 | AE4: kp1000 | AF4: 150000 | AG4: 60 | AH4: 0 | AI4: t6500 | AJ4: 100
A5: 20103 | B5: t5200 | C5: 3 | D5: 3 | E5: 1 | F5: 1 | G5: 0 | H5: 0 | I5: =_xlfn.FLOOR.MATH(I4*1.4) -> 460 | J5: 0 | K5: 0 | L5: 50101 | M5: 0 | N5: 0 | O5: 15000 | P5: 0 | Q5: 0 | R5: 0 | S5: 0 | T5: 0 | U5: 0 | V5: 50101 | W5: 35 | X5: 1^3 | Y5: 1^1 | Z5: 0 | AA5: 6 | AB5: 0 | AC5: 0 | AD5: 0 | AE5: kp1000 | AF5: 150000 | AG5: 120 | AH5: 0 | AI5: t6500 | AJ5: 100
A6: 20104 | B6: t5200 | C6: 4 | D6: 4 | E6: 1 | F6: 1 | G6: 0 | H6: 0 | I6: 644 | J6: 0 | K6: 0 | L6: 50102 | M6: 0 | N6: 0 | O6: 15000 | P6: 0 | Q6: 0 | R6: 0 | S6: 0 | T6: 0 | U6: 0 | V6: 50102 | W6: 35 | X6: 1^3 | Y6: 1^1 | Z6: 0 | AA6: 6 | AB6: 0 | AC6: 0 | AD6: 0 | AE6: kp1000 | AF6: 150000 | AG6: 240 | AH6: t6600 | AI6: t6501 | AJ6: 100
A7: 20105 | B7: t5200 | C7: 5 | D7: 4 | E7: 1 | F7: 1 | G7: 0 | H7: 0 | I7: 901 | J7: 0 | K7: 0 | L7: 50102 | M7: 0 | N7: 0 | O7: 15000 | P7: 0 | Q7: 0 | R7: 0 | S7: 0 | T7: 0 | U7: 0 | V7: 50102 | W7: 35 | X7: 1^3 | Y7: 1^1 | Z7: 0 | AA7: 6 | AB7: 0 | AC7: 0 | AD7: 0 | AE7: kp1000 | AF7: 150000 | AG7: 240 | AH7: 0 | AI7: t6501 | AJ7: 100
A8: 20106 | B8: t5200 | C8: 6 | D8: 4 | E8: 1 | F8: 1 | G8: 0 | H8: 0 | I8: 1261 | J8: 0 | K8: 0 | L8: 50102 | M8: 0 | N8: 0 | O8: 15000 | P8: 0 | Q8: 0 | R8: 0 | S8: 0 | T8: 0 | U8: 0 | V8: 50102 | W8: 35 | X8: 1^3 | Y8: 1^1 | Z8: 0 | AA8: 6 | AB8: 0 | AC8: 0 | AD8: 0 | AE8: kp1000 | AF8: 150000 | AG8: 240 | AH8: 0 | AI8: t6501 | AJ8: 100
A9: 20107 | B9: t5200 | C9: 7 | D9: 5 | E9: 1 | F9: 1 | G9: 0 | H9: 0 | I9: 1765 | J9: 0 | K9: 0 | L9: 50103 | M9: 0 | N9: 0 | O9: 15000 | P9: 0 | Q9: 0 | R9: 0 | S9: 0 | T9: 0 | U9: 0 | V9: 50103 | W9: 35 | X9: 1^3 | Y9: 1^1 | Z9: 0 | AA9: 6 | AB9: 0 | AC9: 0 | AD9: 0 | AE9: kp1000 | AF9: 150000 | AG9: 480 | AH9: t6601 | AI9: t6502 | AJ9: 100
A10: 20108 | B10: t5200 | C10: 8 | D10: 5 | E10: 1 | F10: 1 | G10: 0 | H10: 0 | I10: 2471 | J10: 0 | K10: 0 | L10: 50103 | M10: 0 | N10: 0 | O10: 15000 | P10: 0 | Q10: 0 | R10: 0 | S10: 0 | T10: 0 | U10: 0 | V10: 50103 | W10: 35 | X10: 1^3 | Y10: 1^1 | Z10: 0 | AA10: 6 | AB10: 0 | AC10: 0 | AD10: 0 | AE10: kp1000 | AF10: 150000 | AG10: 480 | AH10: 0 | AI10: t6502 | AJ10: 100
A11: 20109 | B11: t5200 | C11: 9 | D11: 5 | E11: 1 | F11: 1 | G11: 0 | H11: 0 | I11: 3459 | J11: 0 | K11: 0 | L11: 50103 | M11: 0 | N11: 0 | O11: 15000 | P11: 0 | Q11: 0 | R11: 0 | S11: 0 | T11: 0 | U11: 0 | V11: 50103 | W11: 35 | X11: 1^3 | Y11: 1^1 | Z11: 0 | AA11: 6 | AB11: 0 | AC11: 0 | AD11: 0 | AE11: kp1000 | AF11: 150000 | AG11: 480 | AH11: 0 | AI11: t6502 | AJ11: 100
A12: 20110 | B12: t5200 | C12: 10 | D12: 5 | E12: 1 | F12: 1 | G12: 0 | H12: 0 | I12: 4842 | J12: 0 | K12: 0 | L12: 50103 | M12: 0 | N12: 0 | O12: 15000 | P12: 0 | Q12: 0 | R12: 0 | S12: 0 | T12: 0 | U12: 0 | V12: 50103 | W12: 35 | X12: 1^3 | Y12: 1^1 | Z12: 0 | AA12: 6 | AB12: 0 | AC12: 0 | AD12: 0 | AE12: kp1000 | AF12: 150000 | AG12: 480 | AH12: 0 | AI12: t6502 | AJ12: 100
A13: 20111 | B13: t5200 | C13: 11 | D13: 6 | E13: 1 | F13: 1 | G13: 0 | H13: 0 | I13: 6778 | J13: 0 | K13: 0 | L13: 50103 | M13: 0 | N13: 0 | O13: 15000 | P13: 0 | Q13: 0 | R13: 0 | S13: 0 | T13: 0 | U13: 0 | V13: 50103 | W13: 35 | X13: 1^3 | Y13: 1^1 | Z13: 0 | AA13: 6 | AB13: 0 | AC13: 0 | AD13: 0 | AE13: kp1000 | AF13: 150000 | AG13: 960 | AH13: 0 | AI13: t6502 | AJ13: 100
A14: 20401 | B14: t5201 | C14: 1 | D14: 1 | E14: 1 | F14: 1 | G14: 0 | H14: 0 | I14: 75 | J14: 0 | K14: 0 | L14: 0 | M14: 0 | N14: 0 | O14: 15000 | P14: 0 | Q14: 0 | R14: 0 | S14: 0 | T14: 0 | U14: 1000 | V14: 50201 | W14: 45 | X14: 3^4 | Y14: 3^1 | Z14: 2 | AA14: 6 | AB14: 0 | AC14: 1000 | AD14: 250 | AE14: kp1001 | AF14: 150003 | AG14: 60 | AH14: 0 | AI14: t6503 | AJ14: 50 | AK14: 龙卷风
A15: 20402 | B15: t5201 | C15: 2 | D15: 2 | E15: 1 | F15: 1 | G15: 0 | H15: 0 | I15: =_xlfn.FLOOR.MATH(I14*1.3) -> 97 | J15: 0 | K15: 0 | L15: 0 | M15: 0 | N15: 0 | O15: 15000 | P15: 0 | Q15: 0 | R15: 0 | S15: 0 | T15: 0 | U15: 1000 | V15: 50201 | W15: 45 | X15: 3^4 | Y15: 3^1 | Z15: 2 | AA15: 6 | AB15: 0 | AC15: 1000 | AD15: 250 | AE15: kp1001 | AF15: 150003 | AG15: 60 | AH15: 0 | AI15: t6503 | AJ15: 50
A16: 20403 | B16: t5201 | C16: 3 | D16: 3 | E16: 1 | F16: 1 | G16: 0 | H16: 0 | I16: =_xlfn.FLOOR.MATH(I15*1.3) -> 126 | J16: 0 | K16: 0 | L16: 0 | M16: 0 | N16: 0 | O16: 15000 | P16: 0 | Q16: 0 | R16: 0 | S16: 0 | T16: 0 | U16: 1000 | V16: 50201 | W16: 45 | X16: 3^4 | Y16: 3^1 | Z16: 2 | AA16: 6 | AB16: 0 | AC16: 1000 | AD16: 250 | AE16: kp1001 | AF16: 150003 | AG16: 120 | AH16: 0 | AI16: t6503 | AJ16: 50
A17: 20404 | B17: t5201 | C17: 4 | D17: 4 | E17: 1 | F17: 1 | G17: 0 | H17: 0 | I17: 163 | J17: 0 | K17: 0 | L17: 0 | M17: 0 | N17: 0 | O17: 15000 | P17: 0 | Q17: 0 | R17: 0 | S17: 0 | T17: 0 | U17: 1000 | V17: 50202 | W17: 45 | X17: 3^4 | Y17: 3^1 | Z17: 2 | AA17: 6 | AB17: 0 | AC17: 1000 | AD17: 250 | AE17: kp1001 | AF17: 150003 | AG17: 240 | AH17: t6602 | AI17: t6504 | AJ17: 50
A18: 20405 | B18: t5201 | C18: 5 | D18: 4 | E18: 1 | F18: 1 | G18: 0 | H18: 0 | I18: 211 | J18: 0 | K18: 0 | L18: 0 | M18: 0 | N18: 0 | O18: 15000 | P18: 0 | Q18: 0 | R18: 0 | S18: 0 | T18: 0 | U18: 1000 | V18: 50202 | W18: 45 | X18: 3^4 | Y18: 3^1 | Z18: 2 | AA18: 6 | AB18: 0 | AC18: 1000 | AD18: 250 | AE18: kp1001 | AF18: 150003 | AG18: 240 | AH18: 0 | AI18: t6504 | AJ18: 50
A19: 20406 | B19: t5201 | C19: 6 | D19: 4 | E19: 1 | F19: 1 | G19: 0 | H19: 0 | I19: 274 | J19: 0 | K19: 0 | L19: 0 | M19: 0 | N19: 0 | O19: 15000 | P19: 0 | Q19: 0 | R19: 0 | S19: 0 | T19: 0 | U19: 1000 | V19: 50202 | W19: 45 | X19: 3^4 | Y19: 3^1 | Z19: 2 | AA19: 6 | AB19: 0 | AC19: 1000 | AD19: 250 | AE19: kp1001 | AF19: 150003 | AG19: 240 | AH19: 0 | AI19: t6504 | AJ19: 50
A20: 20407 | B20: t5201 | C20: 7 | D20: 5 | E20: 1 | F20: 1 | G20: 0 | H20: 0 | I20: 356 | J20: 0 | K20: 0 | L20: 0 | M20: 0 | N20: 0 | O20: 15000 | P20: 0 | Q20: 0 | R20: 0 | S20: 0 | T20: 0 | U20: 1000 | V20: 50203 | W20: 45 | X20: 3^4 | Y20: 3^1 | Z20: 2 | AA20: 6 | AB20: 0 | AC20: 1000 | AD20: 250 | AE20: kp1001 | AF20: 150003 | AG20: 480 | AH20: t6603 | AI20: t6505 | AJ20: 50
A21: 20408 | B21: t5201 | C21: 8 | D21: 5 | E21: 1 | F21: 1 | G21: 0 | H21: 0 | I21: 462 | J21: 0 | K21: 0 | L21: 0 | M21: 0 | N21: 0 | O21: 15000 | P21: 0 | Q21: 0 | R21: 0 | S21: 0 | T21: 0 | U21: 1000 | V21: 50203 | W21: 45 | X21: 3^4 | Y21: 3^1 | Z21: 2 | AA21: 6 | AB21: 0 | AC21: 1000 | AD21: 250 | AE21: kp1001 | AF21: 150003 | AG21: 480 | AH21: 0 | AI21: t6505 | AJ21: 50
A22: 20409 | B22: t5201 | C22: 9 | D22: 5 | E22: 1 | F22: 1 | G22: 0 | H22: 0 | I22: 600 | J22: 0 | K22: 0 | L22: 0 | M22: 0 | N22: 0 | O22: 15000 | P22: 0 | Q22: 0 | R22: 0 | S22: 0 | T22: 0 | U22: 1000 | V22: 50203 | W22: 45 | X22: 3^4 | Y22: 3^1 | Z22: 2 | AA22: 6 | AB22: 0 | AC22: 1000 | AD22: 250 | AE22: kp1001 | AF22: 150003 | AG22: 480 | AH22: 0 | AI22: t6505 | AJ22: 50
A23: 20410 | B23: t5201 | C23: 10 | D23: 5 | E23: 1 | F23: 1 | G23: 0 | H23: 0 | I23: 780 | J23: 0 | K23: 0 | L23: 0 | M23: 0 | N23: 0 | O23: 15000 | P23: 0 | Q23: 0 | R23: 0 | S23: 0 | T23: 0 | U23: 1000 | V23: 50203 | W23: 45 | X23: 3^4 | Y23: 3^1 | Z23: 2 | AA23: 6 | AB23: 0 | AC23: 1000 | AD23: 250 | AE23: kp1001 | AF23: 150003 | AG23: 480 | AH23: 0 | AI23: t6505 | AJ23: 50
A24: 20411 | B24: t5201 | C24: 11 | D24: 6 | E24: 1 | F24: 1 | G24: 0 | H24: 0 | I24: 1014 | J24: 0 | K24: 0 | L24: 0 | M24: 0 | N24: 0 | O24: 15000 | P24: 0 | Q24: 0 | R24: 0 | S24: 0 | T24: 0 | U24: 1000 | V24: 50203 | W24: 45 | X24: 3^4 | Y24: 3^1 | Z24: 2 | AA24: 6 | AB24: 0 | AC24: 1000 | AD24: 250 | AE24: kp1001 | AF24: 150003 | AG24: 960 | AH24: 0 | AI24: t6505 | AJ24: 50
A25: 20501 | B25: t5202 | C25: 1 | D25: 1 | E25: 1 | F25: 1 | G25: 0 | H25: 0 | I25: 75 | J25: 0 | K25: 0 | L25: 50301 | M25: 0 | N25: 0 | O25: 15000 | P25: 0 | Q25: 0 | R25: 0 | S25: 0 | T25: 0 | U25: 0 | V25: 50301 | W25: 45 | X25: 2^3 | Y25: 1^7^0.2 | Z25: 1 | AA25: 6 | AB25: 0 | AC25: 360 | AD25: 240 | AE25: kp1002 | AF25: 150004 | AG25: 60 | AH25: 0 | AI25: t6506 | AJ25: 100 | AK25: 冰锥
A26: 20502 | B26: t5202 | C26: 2 | D26: 2 | E26: 1 | F26: 1 | G26: 0 | H26: 0 | I26: =_xlfn.FLOOR.MATH(I25*1.3) -> 97 | J26: 0 | K26: 0 | L26: 50301 | M26: 0 | N26: 0 | O26: 15000 | P26: 0 | Q26: 0 | R26: 0 | S26: 0 | T26: 0 | U26: 0 | V26: 50301 | W26: 45 | X26: 2^3 | Y26: 1^7^0.2 | Z26: 1 | AA26: 6 | AB26: 0 | AC26: 360 | AD26: 240 | AE26: kp1002 | AF26: 150004 | AG26: 60 | AH26: 0 | AI26: t6506 | AJ26: 100
A27: 20503 | B27: t5202 | C27: 3 | D27: 3 | E27: 1 | F27: 1 | G27: 0 | H27: 0 | I27: =_xlfn.FLOOR.MATH(I26*1.3) -> 126 | J27: 0 | K27: 0 | L27: 50301 | M27: 0 | N27: 0 | O27: 15000 | P27: 0 | Q27: 0 | R27: 0 | S27: 0 | T27: 0 | U27: 0 | V27: 50301 | W27: 45 | X27: 2^3 | Y27: 1^7^0.2 | Z27: 1 | AA27: 6 | AB27: 0 | AC27: 360 | AD27: 240 | AE27: kp1002 | AF27: 150004 | AG27: 120 | AH27: 0 | AI27: t6506 | AJ27: 100
A28: 20504 | B28: t5202 | C28: 4 | D28: 4 | E28: 1 | F28: 1 | G28: 0 | H28: 0 | I28: =_xlfn.FLOOR.MATH(I27*1.2) -> 151 | J28: 0 | K28: 0 | L28: 50302 | M28: 0 | N28: 0 | O28: 15000 | P28: 0 | Q28: 0 | R28: 0 | S28: 0 | T28: 0 | U28: 0 | V28: 50302 | W28: 45 | X28: 2^3 | Y28: 1^7^0.2 | Z28: 1 | AA28: 6 | AB28: 0 | AC28: 360 | AD28: 240 | AE28: kp1002 | AF28: 150004 | AG28: 240 | AH28: t6604 | AI28: t6507 | AJ28: 100
A29: 20505 | B29: t5202 | C29: 5 | D29: 4 | E29: 1 | F29: 1 | G29: 0 | H29: 0 | I29: 181 | J29: 0 | K29: 0 | L29: 50302 | M29: 0 | N29: 0 | O29: 15000 | P29: 0 | Q29: 0 | R29: 0 | S29: 0 | T29: 0 | U29: 0 | V29: 50302 | W29: 45 | X29: 2^3 | Y29: 1^7^0.2 | Z29: 1 | AA29: 6 | AB29: 0 | AC29: 360 | AD29: 240 | AE29: kp1002 | AF29: 150004 | AG29: 240 | AH29: 0 | AI29: t6507 | AJ29: 100
A30: 20506 | B30: t5202 | C30: 6 | D30: 4 | E30: 1 | F30: 1 | G30: 0 | H30: 0 | I30: 217 | J30: 0 | K30: 0 | L30: 50302 | M30: 0 | N30: 0 | O30: 15000 | P30: 0 | Q30: 0 | R30: 0 | S30: 0 | T30: 0 | U30: 0 | V30: 50302 | W30: 45 | X30: 2^3 | Y30: 1^7^0.2 | Z30: 1 | AA30: 6 | AB30: 0 | AC30: 360 | AD30: 240 | AE30: kp1002 | AF30: 150004 | AG30: 240 | AH30: 0 | AI30: t6507 | AJ30: 100
A31: 20507 | B31: t5202 | C31: 7 | D31: 5 | E31: 1 | F31: 1 | G31: 0 | H31: 0 | I31: 260 | J31: 0 | K31: 0 | L31: 50303 | M31: 0 | N31: 0 | O31: 15000 | P31: 0 | Q31: 0 | R31: 0 | S31: 0 | T31: 0 | U31: 0 | V31: 50303 | W31: 45 | X31: 2^3 | Y31: 1^10^0.2 | Z31: 1 | AA31: 6 | AB31: 0 | AC31: 360 | AD31: 240 | AE31: kp1002 | AF31: 150004 | AG31: 480 | AH31: t6605 | AI31: t6508 | AJ31: 100
A32: 20508 | B32: t5202 | C32: 8 | D32: 5 | E32: 1 | F32: 1 | G32: 0 | H32: 0 | I32: 312 | J32: 0 | K32: 0 | L32: 50303 | M32: 0 | N32: 0 | O32: 15000 | P32: 0 | Q32: 0 | R32: 0 | S32: 0 | T32: 0 | U32: 0 | V32: 50303 | W32: 45 | X32: 2^3 | Y32: 1^10^0.2 | Z32: 1 | AA32: 6 | AB32: 0 | AC32: 360 | AD32: 240 | AE32: kp1002 | AF32: 150004 | AG32: 480 | AH32: 0 | AI32: t6508 | AJ32: 100
A33: 20509 | B33: t5202 | C33: 9 | D33: 5 | E33: 1 | F33: 1 | G33: 0 | H33: 0 | I33: 374 | J33: 0 | K33: 0 | L33: 50303 | M33: 0 | N33: 0 | O33: 15000 | P33: 0 | Q33: 0 | R33: 0 | S33: 0 | T33: 0 | U33: 0 | V33: 50303 | W33: 45 | X33: 2^3 | Y33: 1^10^0.2 | Z33: 1 | AA33: 6 | AB33: 0 | AC33: 360 | AD33: 240 | AE33: kp1002 | AF33: 150004 | AG33: 480 | AH33: 0 | AI33: t6508 | AJ33: 100
A34: 20510 | B34: t5202 | C34: 10 | D34: 5 | E34: 1 | F34: 1 | G34: 0 | H34: 0 | I34: 448 | J34: 0 | K34: 0 | L34: 50303 | M34: 0 | N34: 0 | O34: 15000 | P34: 0 | Q34: 0 | R34: 0 | S34: 0 | T34: 0 | U34: 0 | V34: 50303 | W34: 45 | X34: 2^3 | Y34: 1^10^0.2 | Z34: 1 | AA34: 6 | AB34: 0 | AC34: 360 | AD34: 240 | AE34: kp1002 | AF34: 150004 | AG34: 480 | AH34: 0 | AI34: t6508 | AJ34: 100
A35: 20511 | B35: t5202 | C35: 11 | D35: 6 | E35: 1 | F35: 1 | G35: 0 | H35: 0 | I35: 537 | J35: 0 | K35: 0 | L35: 50303 | M35: 0 | N35: 0 | O35: 15000 | P35: 0 | Q35: 0 | R35: 0 | S35: 0 | T35: 0 | U35: 0 | V35: 50303 | W35: 45 | X35: 2^3 | Y35: 1^10^0.2 | Z35: 1 | AA35: 6 | AB35: 0 | AC35: 360 | AD35: 240 | AE35: kp1002 | AF35: 150004 | AG35: 960 | AH35: 0 | AI35: t6508 | AJ35: 100
A36: 20601 | B36: t5203 | C36: 1 | D36: 1 | E36: 1 | F36: 1 | G36: 0 | H36: 0 | I36: 100 | J36: 0 | K36: 0 | L36: 50401 | M36: 0 | N36: 0 | O36: 15000 | P36: 0 | Q36: 0 | R36: 0 | S36: 0 | T36: 0 | U36: 0 | V36: 50401 | W36: 45 | X36: 1^1 | Y36: 1^10^0.2 | Z36: 1 | AA36: 6 | AB36: 0 | AC36: 360 | AD36: 240 | AE36: kp1003 | AF36: 150005 | AG36: 60 | AH36: 0 | AI36: t6509 | AJ36: 100^5 | AK36: 流星火雨
A37: 20602 | B37: t5203 | C37: 2 | D37: 2 | E37: 1 | F37: 1 | G37: 0 | H37: 0 | I37: =_xlfn.FLOOR.MATH(I36*1.3) -> 130 | J37: 0 | K37: 0 | L37: 50401 | M37: 0 | N37: 0 | O37: 15000 | P37: 0 | Q37: 0 | R37: 0 | S37: 0 | T37: 0 | U37: 0 | V37: 50401 | W37: 45 | X37: 1^1 | Y37: 1^10^0.2 | Z37: 1 | AA37: 6 | AB37: 0 | AC37: 360 | AD37: 240 | AE37: kp1003 | AF37: 150005 | AG37: 60 | AH37: 0 | AI37: t6509 | AJ37: 100^5
A38: 20603 | B38: t5203 | C38: 3 | D38: 3 | E38: 1 | F38: 1 | G38: 0 | H38: 0 | I38: =_xlfn.FLOOR.MATH(I37*1.3) -> 169 | J38: 0 | K38: 0 | L38: 50401 | M38: 0 | N38: 0 | O38: 15000 | P38: 0 | Q38: 0 | R38: 0 | S38: 0 | T38: 0 | U38: 0 | V38: 50401 | W38: 45 | X38: 1^1 | Y38: 1^10^0.2 | Z38: 1 | AA38: 6 | AB38: 0 | AC38: 360 | AD38: 240 | AE38: kp1003 | AF38: 150005 | AG38: 120 | AH38: 0 | AI38: t6509 | AJ38: 100^5
A39: 20604 | B39: t5203 | C39: 4 | D39: 4 | E39: 1 | F39: 1 | G39: 0 | H39: 0 | I39: =_xlfn.FLOOR.MATH(I38*1.2) -> 202 | J39: 0 | K39: 0 | L39: 50402 | M39: 0 | N39: 0 | O39: 15000 | P39: 0 | Q39: 0 | R39: 0 | S39: 0 | T39: 0 | U39: 0 | V39: 50402 | W39: 45 | X39: 1^1 | Y39: 1^10^0.2 | Z39: 1 | AA39: 6 | AB39: 0 | AC39: 360 | AD39: 240 | AE39: kp1003 | AF39: 150005 | AG39: 240 | AH39: t6606 | AI39: t6510 | AJ39: 100^5
A40: 20605 | B40: t5203 | C40: 5 | D40: 4 | E40: 1 | F40: 1 | G40: 0 | H40: 0 | I40: 242 | J40: 0 | K40: 0 | L40: 50402 | M40: 0 | N40: 0 | O40: 15000 | P40: 0 | Q40: 0 | R40: 0 | S40: 0 | T40: 0 | U40: 0 | V40: 50402 | W40: 45 | X40: 1^1 | Y40: 1^10^0.2 | Z40: 1 | AA40: 6 | AB40: 0 | AC40: 360 | AD40: 240 | AE40: kp1003 | AF40: 150005 | AG40: 240 | AH40: 0 | AI40: t6510 | AJ40: 100^5
A41: 20606 | B41: t5203 | C41: 6 | D41: 4 | E41: 1 | F41: 1 | G41: 0 | H41: 0 | I41: 290 | J41: 0 | K41: 0 | L41: 50402 | M41: 0 | N41: 0 | O41: 15000 | P41: 0 | Q41: 0 | R41: 0 | S41: 0 | T41: 0 | U41: 0 | V41: 50402 | W41: 45 | X41: 1^1 | Y41: 1^10^0.2 | Z41: 1 | AA41: 6 | AB41: 0 | AC41: 360 | AD41: 240 | AE41: kp1003 | AF41: 150005 | AG41: 240 | AH41: 0 | AI41: t6510 | AJ41: 100^5
A42: 20607 | B42: t5203 | C42: 7 | D42: 5 | E42: 1 | F42: 1 | G42: 0 | H42: 0 | I42: 348 | J42: 0 | K42: 0 | L42: 50403 | M42: 0 | N42: 0 | O42: 15000 | P42: 0 | Q42: 0 | R42: 0 | S42: 0 | T42: 0 | U42: 0 | V42: 50403 | W42: 45 | X42: 1^1 | Y42: 1^10^0.2 | Z42: 1 | AA42: 6 | AB42: 0 | AC42: 360 | AD42: 240 | AE42: kp1003 | AF42: 150005 | AG42: 480 | AH42: t6607 | AI42: t6511 | AJ42: 100^5
A43: 20608 | B43: t5203 | C43: 8 | D43: 5 | E43: 1 | F43: 1 | G43: 0 | H43: 0 | I43: 417 | J43: 0 | K43: 0 | L43: 50403 | M43: 0 | N43: 0 | O43: 15000 | P43: 0 | Q43: 0 | R43: 0 | S43: 0 | T43: 0 | U43: 0 | V43: 50403 | W43: 45 | X43: 1^1 | Y43: 1^10^0.2 | Z43: 1 | AA43: 6 | AB43: 0 | AC43: 360 | AD43: 240 | AE43: kp1003 | AF43: 150005 | AG43: 480 | AH43: 0 | AI43: t6511 | AJ43: 100^5
A44: 20609 | B44: t5203 | C44: 9 | D44: 5 | E44: 1 | F44: 1 | G44: 0 | H44: 0 | I44: 500 | J44: 0 | K44: 0 | L44: 50403 | M44: 0 | N44: 0 | O44: 15000 | P44: 0 | Q44: 0 | R44: 0 | S44: 0 | T44: 0 | U44: 0 | V44: 50403 | W44: 45 | X44: 1^1 | Y44: 1^10^0.2 | Z44: 1 | AA44: 6 | AB44: 0 | AC44: 360 | AD44: 240 | AE44: kp1003 | AF44: 150005 | AG44: 480 | AH44: 0 | AI44: t6511 | AJ44: 100^5
A45: 20610 | B45: t5203 | C45: 10 | D45: 5 | E45: 1 | F45: 1 | G45: 0 | H45: 0 | I45: 600 | J45: 0 | K45: 0 | L45: 50403 | M45: 0 | N45: 0 | O45: 15000 | P45: 0 | Q45: 0 | R45: 0 | S45: 0 | T45: 0 | U45: 0 | V45: 50403 | W45: 45 | X45: 1^1 | Y45: 1^10^0.2 | Z45: 1 | AA45: 6 | AB45: 0 | AC45: 360 | AD45: 240 | AE45: kp1003 | AF45: 150005 | AG45: 480 | AH45: 0 | AI45: t6511 | AJ45: 100^5
A46: 20611 | B46: t5203 | C46: 11 | D46: 6 | E46: 1 | F46: 1 | G46: 0 | H46: 0 | I46: 720 | J46: 0 | K46: 0 | L46: 50403 | M46: 0 | N46: 0 | O46: 15000 | P46: 0 | Q46: 0 | R46: 0 | S46: 0 | T46: 0 | U46: 0 | V46: 50403 | W46: 45 | X46: 1^1 | Y46: 1^10^0.2 | Z46: 1 | AA46: 6 | AB46: 0 | AC46: 360 | AD46: 240 | AE46: kp1003 | AF46: 150005 | AG46: 960 | AH46: 0 | AI46: t6511 | AJ46: 100^5
A47: 20701 | B47: t5204 | C47: 1 | D47: 1 | E47: 1 | F47: 1 | G47: 0 | H47: 0 | I47: 97 | J47: 0 | K47: 0 | L47: 0 | M47: 0 | N47: 0 | O47: 15000 | P47: 0 | Q47: 0 | R47: 0 | S47: 0 | T47: 0 | U47: 0 | V47: 50501 | W47: 30 | X47: 0 | Y47: 2^1 | Z47: 1 | AA47: 6 | AB47: 0 | AC47: 360 | AD47: 240 | AE47: kp1005 | AF47: 150006 | AG47: 60 | AH47: 0 | AI47: t6515 | AJ47: 100^10 | AK47: 恢复祷言
A48: 20702 | B48: t5204 | C48: 2 | D48: 2 | E48: 1 | F48: 1 | G48: 0 | H48: 0 | I48: =_xlfn.FLOOR.MATH(I47*1.3) -> 126 | J48: 0 | K48: 0 | L48: 0 | M48: 0 | N48: 0 | O48: 15000 | P48: 0 | Q48: 0 | R48: 0 | S48: 0 | T48: 0 | U48: 0 | V48: 50501 | W48: 30 | X48: 0 | Y48: 2^1 | Z48: 1 | AA48: 6 | AB48: 0 | AC48: 360 | AD48: 240 | AE48: kp1005 | AF48: 150006 | AG48: 60 | AH48: 0 | AI48: t6515 | AJ48: 100^10
A49: 20703 | B49: t5204 | C49: 3 | D49: 3 | E49: 1 | F49: 1 | G49: 0 | H49: 0 | I49: =_xlfn.FLOOR.MATH(I48*1.3) -> 163 | J49: 0 | K49: 0 | L49: 0 | M49: 0 | N49: 0 | O49: 15000 | P49: 0 | Q49: 0 | R49: 0 | S49: 0 | T49: 0 | U49: 0 | V49: 50501 | W49: 30 | X49: 0 | Y49: 2^1 | Z49: 1 | AA49: 6 | AB49: 0 | AC49: 360 | AD49: 240 | AE49: kp1005 | AF49: 150006 | AG49: 120 | AH49: 0 | AI49: t6515 | AJ49: 100^10
A50: 20704 | B50: t5204 | C50: 4 | D50: 4 | E50: 1 | F50: 1 | G50: 0 | H50: 0 | I50: =_xlfn.FLOOR.MATH(I49*1.2) -> 195 | J50: 0 | K50: 0 | L50: 0 | M50: 0 | N50: 0 | O50: 15000 | P50: 0 | Q50: 0 | R50: 0 | S50: 0 | T50: 0 | U50: 0 | V50: 50502 | W50: 30 | X50: 0 | Y50: 2^1 | Z50: 1 | AA50: 6 | AB50: 0 | AC50: 360 | AD50: 240 | AE50: kp1005 | AF50: 150006 | AG50: 240 | AH50: t6608 | AI50: t6516 | AJ50: 100^10
A51: 20705 | B51: t5204 | C51: 5 | D51: 4 | E51: 1 | F51: 1 | G51: 0 | H51: 0 | I51: 234 | J51: 0 | K51: 0 | L51: 0 | M51: 0 | N51: 0 | O51: 15000 | P51: 0 | Q51: 0 | R51: 0 | S51: 0 | T51: 0 | U51: 0 | V51: 50502 | W51: 30 | X51: 0 | Y51: 2^1 | Z51: 1 | AA51: 6 | AB51: 0 | AC51: 360 | AD51: 240 | AE51: kp1005 | AF51: 150006 | AG51: 240 | AH51: 0 | AI51: t6516 | AJ51: 100^10
A52: 20706 | B52: t5204 | C52: 6 | D52: 4 | E52: 1 | F52: 1 | G52: 0 | H52: 0 | I52: 280 | J52: 0 | K52: 0 | L52: 0 | M52: 0 | N52: 0 | O52: 15000 | P52: 0 | Q52: 0 | R52: 0 | S52: 0 | T52: 0 | U52: 0 | V52: 50502 | W52: 30 | X52: 0 | Y52: 2^1 | Z52: 1 | AA52: 6 | AB52: 0 | AC52: 360 | AD52: 240 | AE52: kp1005 | AF52: 150006 | AG52: 240 | AH52: 0 | AI52: t6516 | AJ52: 100^10
A53: 20707 | B53: t5204 | C53: 7 | D53: 5 | E53: 1 | F53: 1 | G53: 0 | H53: 0 | I53: 336 | J53: 0 | K53: 0 | L53: 0 | M53: 0 | N53: 0 | O53: 15000 | P53: 0 | Q53: 0 | R53: 0 | S53: 0 | T53: 0 | U53: 0 | V53: 50503 | W53: 30 | X53: 0 | Y53: 2^1 | Z53: 0 | AA53: 6 | AB53: 0 | AC53: 0 | AD53: 0 | AE53: kp1005 | AF53: 150006 | AG53: 480 | AH53: t6610 | AI53: t6517 | AJ53: 130^10
A54: 20708 | B54: t5204 | C54: 8 | D54: 5 | E54: 1 | F54: 1 | G54: 0 | H54: 0 | I54: 403 | J54: 0 | K54: 0 | L54: 0 | M54: 0 | N54: 0 | O54: 15000 | P54: 0 | Q54: 0 | R54: 0 | S54: 0 | T54: 0 | U54: 0 | V54: 50503 | W54: 30 | X54: 0 | Y54: 2^1 | Z54: 0 | AA54: 6 | AB54: 0 | AC54: 0 | AD54: 0 | AE54: kp1005 | AF54: 150006 | AG54: 480 | AH54: 0 | AI54: t6517 | AJ54: 130^10
A55: 20709 | B55: t5204 | C55: 9 | D55: 5 | E55: 1 | F55: 1 | G55: 0 | H55: 0 | I55: 483 | J55: 0 | K55: 0 | L55: 0 | M55: 0 | N55: 0 | O55: 15000 | P55: 0 | Q55: 0 | R55: 0 | S55: 0 | T55: 0 | U55: 0 | V55: 50503 | W55: 30 | X55: 0 | Y55: 2^1 | Z55: 0 | AA55: 6 | AB55: 0 | AC55: 0 | AD55: 0 | AE55: kp1005 | AF55: 150006 | AG55: 480 | AH55: 0 | AI55: t6517 | AJ55: 130^10
A56: 20710 | B56: t5204 | C56: 10 | D56: 5 | E56: 1 | F56: 1 | G56: 0 | H56: 0 | I56: 579 | J56: 0 | K56: 0 | L56: 0 | M56: 0 | N56: 0 | O56: 15000 | P56: 0 | Q56: 0 | R56: 0 | S56: 0 | T56: 0 | U56: 0 | V56: 50503 | W56: 30 | X56: 0 | Y56: 2^1 | Z56: 0 | AA56: 6 | AB56: 0 | AC56: 360 | AD56: 240 | AE56: kp1005 | AF56: 150006 | AG56: 480 | AH56: 0 | AI56: t6517 | AJ56: 130^10
A57: 20711 | B57: t5204 | C57: 11 | D57: 6 | E57: 1 | F57: 1 | G57: 0 | H57: 0 | I57: 694 | J57: 0 | K57: 0 | L57: 0 | M57: 0 | N57: 0 | O57: 15000 | P57: 0 | Q57: 0 | R57: 0 | S57: 0 | T57: 0 | U57: 0 | V57: 50503 | W57: 30 | X57: 0 | Y57: 2^1 | Z57: 0 | AA57: 6 | AB57: 0 | AC57: 360 | AD57: 240 | AE57: kp1005 | AF57: 150006 | AG57: 960 | AH57: 0 | AI57: t6517 | AJ57: 130^10
A58: 20801 | B58: t5205 | C58: 1 | D58: 1 | E58: 1 | F58: 1 | G58: 0 | H58: 0 | I58: 67 | J58: 0 | K58: 0 | L58: 0 | M58: 0 | N58: 0 | O58: 15000 | P58: 0 | Q58: 0 | R58: 0 | S58: 0 | T58: 0 | U58: 0 | V58: 50601 | W58: 45 | X58: 0 | Y58: 2^1 | Z58: 1 | AA58: 6 | AB58: 0 | AC58: 360 | AD58: 240 | AE58: kp1006 | AF58: 150007 | AG58: 60 | AH58: 0 | AI58: t6518 | AJ58: 100^5 | AK58: 圣盾
A59: 20802 | B59: t5205 | C59: 2 | D59: 2 | E59: 1 | F59: 1 | G59: 0 | H59: 0 | I59: =_xlfn.FLOOR.MATH(I58*1.3) -> 87 | J59: 0 | K59: 0 | L59: 0 | M59: 0 | N59: 0 | O59: 15000 | P59: 0 | Q59: 0 | R59: 0 | S59: 0 | T59: 0 | U59: 0 | V59: 50601 | W59: 45 | X59: 0 | Y59: 2^1 | Z59: 1 | AA59: 6 | AB59: 0 | AC59: 360 | AD59: 240 | AE59: kp1006 | AF59: 150007 | AG59: 60 | AH59: 0 | AI59: t6518 | AJ59: 100^5
A60: 20803 | B60: t5205 | C60: 3 | D60: 3 | E60: 1 | F60: 1 | G60: 0 | H60: 0 | I60: =_xlfn.FLOOR.MATH(I59*1.3) -> 113 | J60: 0 | K60: 0 | L60: 0 | M60: 0 | N60: 0 | O60: 15000 | P60: 0 | Q60: 0 | R60: 0 | S60: 0 | T60: 0 | U60: 0 | V60: 50601 | W60: 45 | X60: 0 | Y60: 2^1 | Z60: 1 | AA60: 6 | AB60: 0 | AC60: 360 | AD60: 240 | AE60: kp1006 | AF60: 150007 | AG60: 120 | AH60: 0 | AI60: t6518 | AJ60: 100^5
A61: 20804 | B61: t5205 | C61: 4 | D61: 4 | E61: 1 | F61: 1 | G61: 0 | H61: 0 | I61: =_xlfn.FLOOR.MATH(I60*1.2) -> 135 | J61: 0 | K61: 0 | L61: 0 | M61: 0 | N61: 0 | O61: 15000 | P61: 0 | Q61: 0 | R61: 0 | S61: 0 | T61: 0 | U61: 0 | V61: 50602 | W61: 45 | X61: 0 | Y61: 2^1 | Z61: 1 | AA61: 6 | AB61: 0 | AC61: 360 | AD61: 240 | AE61: kp1006 | AF61: 150007 | AG61: 240 | AH61: t6608 | AI61: t6519 | AJ61: 100^5
A62: 20805 | B62: t5205 | C62: 5 | D62: 4 | E62: 1 | F62: 1 | G62: 0 | H62: 0 | I62: 162 | J62: 0 | K62: 0 | L62: 0 | M62: 0 | N62: 0 | O62: 15000 | P62: 0 | Q62: 0 | R62: 0 | S62: 0 | T62: 0 | U62: 0 | V62: 50602 | W62: 45 | X62: 0 | Y62: 2^1 | Z62: 1 | AA62: 6 | AB62: 0 | AC62: 360 | AD62: 240 | AE62: kp1006 | AF62: 150007 | AG62: 240 | AH62: 0 | AI62: t6519 | AJ62: 100^5
A63: 20806 | B63: t5205 | C63: 6 | D63: 4 | E63: 1 | F63: 1 | G63: 0 | H63: 0 | I63: 194 | J63: 0 | K63: 0 | L63: 0 | M63: 0 | N63: 0 | O63: 15000 | P63: 0 | Q63: 0 | R63: 0 | S63: 0 | T63: 0 | U63: 0 | V63: 50602 | W63: 45 | X63: 0 | Y63: 2^1 | Z63: 1 | AA63: 6 | AB63: 0 | AC63: 360 | AD63: 240 | AE63: kp1006 | AF63: 150007 | AG63: 240 | AH63: 0 | AI63: t6519 | AJ63: 100^5
A64: 20807 | B64: t5205 | C64: 7 | D64: 5 | E64: 1 | F64: 1 | G64: 0 | H64: 0 | I64: 232 | J64: 0 | K64: 0 | L64: 0 | M64: 0 | N64: 0 | O64: 15000 | P64: 0 | Q64: 0 | R64: 0 | S64: 0 | T64: 0 | U64: 0 | V64: 50603 | W64: 45 | X64: 0 | Y64: 2^1 | Z64: 1 | AA64: 6 | AB64: 0 | AC64: 360 | AD64: 240 | AE64: kp1006 | AF64: 150007 | AG64: 480 | AH64: t6611 | AI64: t6520 | AJ64: 130^5
A65: 20808 | B65: t5205 | C65: 8 | D65: 5 | E65: 1 | F65: 1 | G65: 0 | H65: 0 | I65: 278 | J65: 0 | K65: 0 | L65: 0 | M65: 0 | N65: 0 | O65: 15000 | P65: 0 | Q65: 0 | R65: 0 | S65: 0 | T65: 0 | U65: 0 | V65: 50603 | W65: 45 | X65: 0 | Y65: 2^1 | Z65: 1 | AA65: 6 | AB65: 0 | AC65: 360 | AD65: 240 | AE65: kp1006 | AF65: 150007 | AG65: 480 | AH65: 0 | AI65: t6520 | AJ65: 130^5
A66: 20809 | B66: t5205 | C66: 9 | D66: 5 | E66: 1 | F66: 1 | G66: 0 | H66: 0 | I66: 333 | J66: 0 | K66: 0 | L66: 0 | M66: 0 | N66: 0 | O66: 15000 | P66: 0 | Q66: 0 | R66: 0 | S66: 0 | T66: 0 | U66: 0 | V66: 50603 | W66: 45 | X66: 0 | Y66: 2^1 | Z66: 1 | AA66: 6 | AB66: 0 | AC66: 360 | AD66: 240 | AE66: kp1006 | AF66: 150007 | AG66: 480 | AH66: 0 | AI66: t6520 | AJ66: 130^5
A67: 20810 | B67: t5205 | C67: 10 | D67: 5 | E67: 1 | F67: 1 | G67: 0 | H67: 0 | I67: 399 | J67: 0 | K67: 0 | L67: 0 | M67: 0 | N67: 0 | O67: 15000 | P67: 0 | Q67: 0 | R67: 0 | S67: 0 | T67: 0 | U67: 0 | V67: 50603 | W67: 45 | X67: 0 | Y67: 2^1 | Z67: 1 | AA67: 6 | AB67: 0 | AC67: 360 | AD67: 240 | AE67: kp1006 | AF67: 150007 | AG67: 480 | AH67: 0 | AI67: t6520 | AJ67: 130^5
A68: 20811 | B68: t5205 | C68: 11 | D68: 6 | E68: 1 | F68: 1 | G68: 0 | H68: 0 | I68: 478 | J68: 0 | K68: 0 | L68: 0 | M68: 0 | N68: 0 | O68: 15000 | P68: 0 | Q68: 0 | R68: 0 | S68: 0 | T68: 0 | U68: 0 | V68: 50603 | W68: 45 | X68: 0 | Y68: 2^1 | Z68: 1 | AA68: 6 | AB68: 0 | AC68: 360 | AD68: 240 | AE68: kp1006 | AF68: 150007 | AG68: 960 | AH68: 0 | AI68: t6520 | AJ68: 130^5
A69: 20201 | B69: t5206 | C69: 1 | D69: 1 | E69: 1 | F69: 1 | G69: 0 | H69: 0 | I69: 10 | J69: 0 | K69: 0 | L69: 0 | M69: 0 | N69: 0 | O69: 15000 | P69: 0 | Q69: 0 | R69: 0 | S69: 0 | T69: 0 | U69: 0 | V69: 50701 | W69: 70 | X69: 0 | Y69: 2^1 | Z69: 0 | AA69: 6 | AB69: 0 | AC69: 360 | AD69: 240 | AE69: kp1007 | AF69: 150001 | AG69: 60 | AH69: 0 | AI69: t6521 | AJ69: 100^8^70 | AK69: 能量灌注
A70: 20202 | B70: t5206 | C70: 2 | D70: 2 | E70: 1 | F70: 1 | G70: 0 | H70: 0 | I70: =_xlfn.FLOOR.MATH(I69*1.3) -> 13 | J70: 0 | K70: 0 | L70: 0 | M70: 0 | N70: 0 | O70: 15000 | P70: 0 | Q70: 0 | R70: 0 | S70: 0 | T70: 0 | U70: 0 | V70: 50701 | W70: 65 | X70: 0 | Y70: 2^1 | Z70: 0 | AA70: 6 | AB70: 0 | AC70: 360 | AD70: 240 | AE70: kp1007 | AF70: 150001 | AG70: 60 | AH70: 0 | AI70: t6521 | AJ70: 100^8^65
A71: 20203 | B71: t5206 | C71: 3 | D71: 3 | E71: 1 | F71: 1 | G71: 0 | H71: 0 | I71: =_xlfn.FLOOR.MATH(I70*1.3) -> 16 | J71: 0 | K71: 0 | L71: 0 | M71: 0 | N71: 0 | O71: 15000 | P71: 0 | Q71: 0 | R71: 0 | S71: 0 | T71: 0 | U71: 0 | V71: 50701 | W71: 60 | X71: 0 | Y71: 2^1 | Z71: 0 | AA71: 6 | AB71: 0 | AC71: 360 | AD71: 240 | AE71: kp1007 | AF71: 150001 | AG71: 120 | AH71: 0 | AI71: t6521 | AJ71: 100^8^60
A72: 20204 | B72: t5206 | C72: 4 | D72: 4 | E72: 1 | F72: 1 | G72: 0 | H72: 0 | I72: =_xlfn.FLOOR.MATH(I71*1.2) -> 19 | J72: 0 | K72: 0 | L72: 0 | M72: 0 | N72: 0 | O72: 15000 | P72: 0 | Q72: 0 | R72: 0 | S72: 0 | T72: 0 | U72: 0 | V72: 50702 | W72: 60 | X72: 0 | Y72: 2^1 | Z72: 0 | AA72: 6 | AB72: 0 | AC72: 360 | AD72: 240 | AE72: kp1007 | AF72: 150001 | AG72: 240 | AH72: t6608 | AI72: t6522 | AJ72: 100^11^60
A73: 20205 | B73: t5206 | C73: 5 | D73: 4 | E73: 1 | F73: 1 | G73: 0 | H73: 0 | I73: 22 | J73: 0 | K73: 0 | L73: 0 | M73: 0 | N73: 0 | O73: 15000 | P73: 0 | Q73: 0 | R73: 0 | S73: 0 | T73: 0 | U73: 0 | V73: 50702 | W73: 55 | X73: 0 | Y73: 2^1 | Z73: 0 | AA73: 6 | AB73: 0 | AC73: 360 | AD73: 240 | AE73: kp1007 | AF73: 150001 | AG73: 240 | AH73: 0 | AI73: t6522 | AJ73: 100^11^55
A74: 20206 | B74: t5206 | C74: 6 | D74: 4 | E74: 1 | F74: 1 | G74: 0 | H74: 0 | I74: 26 | J74: 0 | K74: 0 | L74: 0 | M74: 0 | N74: 0 | O74: 15000 | P74: 0 | Q74: 0 | R74: 0 | S74: 0 | T74: 0 | U74: 0 | V74: 50702 | W74: 50 | X74: 0 | Y74: 2^1 | Z74: 0 | AA74: 6 | AB74: 0 | AC74: 360 | AD74: 240 | AE74: kp1007 | AF74: 150001 | AG74: 240 | AH74: 0 | AI74: t6522 | AJ74: 100^11^50
A75: 20207 | B75: t5206 | C75: 7 | D75: 5 | E75: 1 | F75: 1 | G75: 0 | H75: 0 | I75: 31 | J75: 0 | K75: 0 | L75: 0 | M75: 0 | N75: 0 | O75: 15000 | P75: 0 | Q75: 0 | R75: 0 | S75: 0 | T75: 0 | U75: 0 | V75: 50703 | W75: 50 | X75: 0 | Y75: 2^1 | Z75: 0 | AA75: 6 | AB75: 0 | AC75: 360 | AD75: 240 | AE75: kp1007 | AF75: 150001 | AG75: 480 | AH75: t6611 | AI75: t6523 | AJ75: 100^15^50
A76: 20208 | B76: t5206 | C76: 8 | D76: 5 | E76: 1 | F76: 1 | G76: 0 | H76: 0 | I76: 37 | J76: 0 | K76: 0 | L76: 0 | M76: 0 | N76: 0 | O76: 15000 | P76: 0 | Q76: 0 | R76: 0 | S76: 0 | T76: 0 | U76: 0 | V76: 50703 | W76: 45 | X76: 0 | Y76: 2^1 | Z76: 0 | AA76: 6 | AB76: 0 | AC76: 360 | AD76: 240 | AE76: kp1007 | AF76: 150001 | AG76: 480 | AH76: 0 | AI76: t6523 | AJ76: 100^15^45
A77: 20209 | B77: t5206 | C77: 9 | D77: 5 | E77: 1 | F77: 1 | G77: 0 | H77: 0 | I77: 44 | J77: 0 | K77: 0 | L77: 0 | M77: 0 | N77: 0 | O77: 15000 | P77: 0 | Q77: 0 | R77: 0 | S77: 0 | T77: 0 | U77: 0 | V77: 50703 | W77: 40 | X77: 0 | Y77: 2^1 | Z77: 0 | AA77: 6 | AB77: 0 | AC77: 360 | AD77: 240 | AE77: kp1007 | AF77: 150001 | AG77: 480 | AH77: 0 | AI77: t6523 | AJ77: 100^15^40
A78: 20210 | B78: t5206 | C78: 10 | D78: 5 | E78: 1 | F78: 1 | G78: 0 | H78: 0 | I78: 52 | J78: 0 | K78: 0 | L78: 0 | M78: 0 | N78: 0 | O78: 15000 | P78: 0 | Q78: 0 | R78: 0 | S78: 0 | T78: 0 | U78: 0 | V78: 50703 | W78: 35 | X78: 0 | Y78: 2^1 | Z78: 0 | AA78: 6 | AB78: 0 | AC78: 360 | AD78: 240 | AE78: kp1007 | AF78: 150001 | AG78: 480 | AH78: 0 | AI78: t6523 | AJ78: 100^15^35
A79: 20211 | B79: t5206 | C79: 11 | D79: 6 | E79: 1 | F79: 1 | G79: 0 | H79: 0 | I79: 62 | J79: 0 | K79: 0 | L79: 0 | M79: 0 | N79: 0 | O79: 15000 | P79: 0 | Q79: 0 | R79: 0 | S79: 0 | T79: 0 | U79: 0 | V79: 50704 | W79: 45 | X79: 0 | Y79: 2^1 | Z79: 0 | AA79: 6 | AB79: 0 | AC79: 360 | AD79: 240 | AE79: kp1007 | AF79: 150001 | AG79: 960 | AH79: 0 | AI79: t6523 | AJ79: 100^20^35
A80: 20301 | B80: t5207 | C80: 1 | D80: 1 | E80: 1 | F80: 1 | G80: 0 | H80: 0 | I80: 76 | J80: 0 | K80: 0 | L80: 0 | M80: 0 | N80: 0 | O80: 15000 | P80: 0 | Q80: 0 | R80: 0 | S80: 0 | T80: 0 | U80: 0 | V80: 50801 | W80: 45 | X80: 0 | Y80: 2^1 | Z80: 1 | AA80: 6 | AB80: 0 | AC80: 360 | AD80: 240 | AE80: kp1004 | AF80: 150002 | AG80: 60 | AH80: 0 | AI80: t6512 | AJ80: 100^10 | AK80: 治愈祷言
A81: 20302 | B81: t5207 | C81: 2 | D81: 2 | E81: 1 | F81: 1 | G81: 0 | H81: 0 | I81: =_xlfn.FLOOR.MATH(I80*1.3) -> 98 | J81: 0 | K81: 0 | L81: 0 | M81: 0 | N81: 0 | O81: 15000 | P81: 0 | Q81: 0 | R81: 0 | S81: 0 | T81: 0 | U81: 0 | V81: 50801 | W81: 45 | X81: 0 | Y81: 2^1 | Z81: 1 | AA81: 6 | AB81: 0 | AC81: 360 | AD81: 240 | AE81: kp1004 | AF81: 150002 | AG81: 60 | AH81: 0 | AI81: t6512 | AJ81: 100^10
A82: 20303 | B82: t5207 | C82: 3 | D82: 3 | E82: 1 | F82: 1 | G82: 0 | H82: 0 | I82: =_xlfn.FLOOR.MATH(I81*1.3) -> 127 | J82: 0 | K82: 0 | L82: 0 | M82: 0 | N82: 0 | O82: 15000 | P82: 0 | Q82: 0 | R82: 0 | S82: 0 | T82: 0 | U82: 0 | V82: 50801 | W82: 45 | X82: 0 | Y82: 2^1 | Z82: 1 | AA82: 6 | AB82: 0 | AC82: 360 | AD82: 240 | AE82: kp1004 | AF82: 150002 | AG82: 120 | AH82: 0 | AI82: t6512 | AJ82: 100^10
A83: 20304 | B83: t5207 | C83: 4 | D83: 4 | E83: 1 | F83: 1 | G83: 0 | H83: 0 | I83: =_xlfn.FLOOR.MATH(I82*1.2) -> 152 | J83: 0 | K83: 0 | L83: 0 | M83: 0 | N83: 0 | O83: 15000 | P83: 0 | Q83: 0 | R83: 0 | S83: 0 | T83: 0 | U83: 0 | V83: 50802 | W83: 45 | X83: 0 | Y83: 2^1 | Z83: 1 | AA83: 6 | AB83: 0 | AC83: 360 | AD83: 240 | AE83: kp1004 | AF83: 150002 | AG83: 240 | AH83: t6608 | AI83: t6513 | AJ83: 100^10
A84: 20305 | B84: t5207 | C84: 5 | D84: 4 | E84: 1 | F84: 1 | G84: 0 | H84: 0 | I84: 182 | J84: 0 | K84: 0 | L84: 0 | M84: 0 | N84: 0 | O84: 15000 | P84: 0 | Q84: 0 | R84: 0 | S84: 0 | T84: 0 | U84: 0 | V84: 50802 | W84: 45 | X84: 0 | Y84: 2^1 | Z84: 1 | AA84: 6 | AB84: 0 | AC84: 360 | AD84: 240 | AE84: kp1004 | AF84: 150002 | AG84: 240 | AH84: 0 | AI84: t6513 | AJ84: 100^10
A85: 20306 | B85: t5207 | C85: 6 | D85: 4 | E85: 1 | F85: 1 | G85: 0 | H85: 0 | I85: 218 | J85: 0 | K85: 0 | L85: 0 | M85: 0 | N85: 0 | O85: 15000 | P85: 0 | Q85: 0 | R85: 0 | S85: 0 | T85: 0 | U85: 0 | V85: 50802 | W85: 45 | X85: 0 | Y85: 2^1 | Z85: 1 | AA85: 6 | AB85: 0 | AC85: 360 | AD85: 240 | AE85: kp1004 | AF85: 150002 | AG85: 240 | AH85: 0 | AI85: t6513 | AJ85: 100^10
A86: 20307 | B86: t5207 | C86: 7 | D86: 5 | E86: 1 | F86: 1 | G86: 0 | H86: 0 | I86: 261 | J86: 0 | K86: 0 | L86: 0 | M86: 0 | N86: 0 | O86: 15000 | P86: 0 | Q86: 0 | R86: 0 | S86: 0 | T86: 0 | U86: 0 | V86: 50803 | W86: 45 | X86: 0 | Y86: 2^1 | Z86: 1 | AA86: 6 | AB86: 0 | AC86: 360 | AD86: 240 | AE86: kp1004 | AF86: 150002 | AG86: 480 | AH86: t6609 | AI86: t6514 | AJ86: 100^10
A87: 20308 | B87: t5207 | C87: 8 | D87: 5 | E87: 1 | F87: 1 | G87: 0 | H87: 0 | I87: 313 | J87: 0 | K87: 0 | L87: 0 | M87: 0 | N87: 0 | O87: 15000 | P87: 0 | Q87: 0 | R87: 0 | S87: 0 | T87: 0 | U87: 0 | V87: 50803 | W87: 45 | X87: 0 | Y87: 2^1 | Z87: 1 | AA87: 6 | AB87: 0 | AC87: 360 | AD87: 240 | AE87: kp1004 | AF87: 150002 | AG87: 480 | AH87: 0 | AI87: t6514 | AJ87: 100^10
A88: 20309 | B88: t5207 | C88: 9 | D88: 5 | E88: 1 | F88: 1 | G88: 0 | H88: 0 | I88: 375 | J88: 0 | K88: 0 | L88: 0 | M88: 0 | N88: 0 | O88: 15000 | P88: 0 | Q88: 0 | R88: 0 | S88: 0 | T88: 0 | U88: 0 | V88: 50803 | W88: 45 | X88: 0 | Y88: 2^1 | Z88: 1 | AA88: 6 | AB88: 0 | AC88: 360 | AD88: 240 | AE88: kp1004 | AF88: 150002 | AG88: 480 | AH88: 0 | AI88: t6514 | AJ88: 100^10
A89: 20310 | B89: t5207 | C89: 10 | D89: 5 | E89: 1 | F89: 1 | G89: 0 | H89: 0 | I89: 450 | J89: 0 | K89: 0 | L89: 0 | M89: 0 | N89: 0 | O89: 15000 | P89: 0 | Q89: 0 | R89: 0 | S89: 0 | T89: 0 | U89: 0 | V89: 50803 | W89: 45 | X89: 0 | Y89: 2^1 | Z89: 1 | AA89: 6 | AB89: 0 | AC89: 360 | AD89: 240 | AE89: kp1004 | AF89: 150002 | AG89: 480 | AH89: 0 | AI89: t6514 | AJ89: 100^10
A90: 20311 | B90: t5207 | C90: 11 | D90: 6 | E90: 1 | F90: 1 | G90: 0 | H90: 0 | I90: 540 | J90: 0 | K90: 0 | L90: 0 | M90: 0 | N90: 0 | O90: 15000 | P90: 0 | Q90: 0 | R90: 0 | S90: 0 | T90: 0 | U90: 0 | V90: 50803 | W90: 45 | X90: 0 | Y90: 2^1 | Z90: 1 | AA90: 6 | AB90: 0 | AC90: 360 | AD90: 240 | AE90: kp1004 | AF90: 150002 | AG90: 960 | AH90: 0 | AI90: t6514 | AJ90: 100^10

Sheet 注释
A1: skillCDs： 0代表初始放一次的永久BUFF。 9999代表是另外一个技能触发的技能，比如刺客的背刺触发暴击率提升BUFF
A2: type:1.普通角色。2.唯一角色
A3: attackCD：图腾配置9999
A4: hurtFrame：图腾配置0
A5: moveSpeed：移动速度图腾配置0
A6: lifeDuration：正常角色配置0，召唤物有时间的配置时间
A12: 技能卡牌伤害计算公式=攻击力*(1+队伍等级/100)*(1+天赋增强)
